Cogmind - Beta 10.2 @@@ ROGUE MODE // 2020.11.13 @ 07:37:51 // Halloween2020/ForbiddenLore Player: Ty Piggbottom Result: Self-destructed Performance ------------- Evolutions (0) 0 Regions Visited (4) 800 Robots Destroyed (59) 295 Value Destroyed (853) 853 Prototype IDs (23) 460 Alien Tech Used (0) 0 Bonus (300) 300 TOTAL SCORE: 2708 Bonus ------- Aligned with FarCom 300 Cogmind --------- Core Integrity 148/250 Matter 300/300 Energy 160/250 System Corruption 0% Temperature Cool (80) Movement Core (550) Ox10 Location -9/Mines Parts ------- > --- POWER (1) -------- Ion Engine > --- PROPULSION (2) --- (None) > --- UTILITY (2) ------ Medium Storage Unit Signal Interpreter > --- WEAPON (2) ------- YOLO Cannon > --- INVENTORY (8) ---- Humpback Large Battery (300) Propulsion Shielding Autogun Autogun Autogun Peak State ------------ > --- POWER ------------ Ion Engine > --- PROPULSION ------- Wheel Wheel > --- UTILITY ---------- Medium Storage Unit Signal Interpreter > --- WEAPON ----------- YOLO Cannon > --- INVENTORY -------- Humpback Large Battery Propulsion Shielding Autogun Autogun Autogun [Rating: 26] Favorites ----------- Power Ion Engine Engine Ion Engine Propulsion Wheel Wheel Wheel Hover Unit Hover Unit Utility Signal Interpreter Storage Medium Storage Unit Processor Signal Interpreter Protection Propulsion Shielding Weapon Autogun Energy Gun EM Shotgun Energy Cannon YOLO Cannon Ballistic Gun Autogun Launcher Grenade Launcher Build | -11 -10 -10 -10 -9 ------- Run | Scr Mat Min Exi Min Slots Evolved . | . . . . . Power . | . . . . . Propulsion . | . . . . . Utility . | . . . . . Weapon . | . . . . . Parts Attached 55 | 6 29 18 . 2 Power 6 | 1 3 2 . . Engine 6 | 1 3 2 . . Core . | . . . . . Reactor . | . . . . . Propulsion 10 | 2 3 5 . . Treads . | . . . . . Leg . | . . . . . Wheel 7 | 2 . 5 . . Hover 3 | . 3 . . . Flight . | . . . . . Utility 8 | 1 7 . . . Device . | . . . . . Storage 5 | 1 4 . . . Processor 2 | . 2 . . . Hackware . | . . . . . Protection 1 | . 1 . . . Artifact . | . . . . . Weapon 31 | 2 16 11 . 2 Energy Gun 10 | 1 7 2 . . Energy Cannon 1 | . . . . 1 Ballistic Gun 9 | 1 2 5 . 1 Ballistic Cannon . | . . . . . Launcher 11 | . 7 4 . . Special Weapon . | . . . . . Impact Weapon . | . . . . . Slashing Weapon . | . . . . . Piercing Weapon . | . . . . . Special Melee Weapon . | . . . . . Unidentified Prototypes . | . . . . . Parts Lost 3 | . . 1 . 2 Power . | . . . . . Propulsion 2 | . . . . 2 Utility . | . . . . . Weapon 1 | . . 1 . . Highest Loss Streak 1 | . . 1 . 1 Average Slot Usage (%) 95 | . 98 99 100 77 Engine 14 | . 14 14 14 14 Wheel 15 | . 3 18 28 19 Hover 11 | . 24 9 . . Storage 11 | . 7 14 14 14 Processor 13 | . 12 14 14 14 Protection 2 | . 6 . . . Energy Gun 8 | . 20 5 . . Energy Cannon 2 | . . . . 13 Ballistic Gun 12 | . 1 18 28 . Launcher 3 | . 6 3 . . Naked Turns . | . . . . . Heaviest Build 31 | 12 26 19 19 31 Greatest Support 26 | 26 26 26 20 20 Greatest Overweight (x) 3 | 1 1 1 . 3 Average Overweight (x) . | . . . . 2 Largest Inventory Capacity 12 | 6 12 8 8 8 Average Capacity 7 | 5 5 8 8 8 Most Carried 8 | . 8 8 8 8 Average Carried 6 | . 4 7 7 7 Final Capacity 8 | 6 8 8 8 8 Final Carried 8 | . 8 8 7 7 Class Distribution -------------------- 96% | Mutant 3% | Scavenger-Mutant Dominant Class ---------------- Mutant | -10/Materials Mutant | -10/Mines Mutant | -10/Exiles Mutant | -9/Mines Resources | -11 -10 -10 -10 -9 ----------- Run | Scr Mat Min Exi Min Matter Collected 1442 | 227 592 603 . 20 Remotely . | . . . . . Salvage Created 2285 | 83 931 1099 . 172 Parts 96 | 3 40 46 . 7 Haulers Intercepted 2 | . 2 . . . Recyclers Shooed 12 | . 5 6 . 1 Parts Field Recycled . | . . . . . Retrieved Matter . | . . . . . Parts Self-Destructed . | . . . . . Prevented . | . . . . . Kills | -11 -10 -10 -10 -9 ------- Run | Scr Mat Min Exi Min Combat Hostiles Destroyed 41 | . 7 10 . 24 Guns 2 | . 1 1 . . Cannons 3 | . . . . 3 AOE 36 | . 6 9 . 21 Classes Destroyed 10 | 1 7 . . 2 Worker 3 | . 1 2 . . Builder 3 | . 1 2 . . Tunneler 3 | . 1 1 . 1 Hauler 2 | . 2 . . . Recycler 23 | 1 8 14 . . Watcher 3 | . 3 . . . Swarmer 12 | . 3 6 . 3 Grunt 8 | . 4 4 . . Sentry 2 | . . . . 2 Assembled 19 | . . . . 19 Best Kill Streak 19 | 1 4 6 . 19 Combat Bots Only 19 | . 3 3 . 19 Max Kills in Single Turn 12 | 1 2 3 . 12 Gunslinging . | . . . . . Exploded 11 | . 2 3 . 11 Melee . | . . . . . Uniques/NPCs Destroyed . | . . . . . Combat | -11 -10 -10 -10 -9 -------- Run | Scr Mat Min Exi Min Damage Taken 722 | . 138 291 . 293 Core 102 | . 21 52 . 29 Absorbed by Shields . | . . . . . Core Remaining (%) 100 | 100 . . . . Volleys Fired 126 | 2 51 57 . 16 Largest 2 | 2 2 2 . 1 Hottest 100 | 70 90 90 . 100 Shots Fired 192 | 4 82 90 . 16 Gun 128 | 4 56 68 . . Cannon 16 | . . . . 16 Launcher 48 | . 26 22 . . Special . | . . . . . Kinetic 61 | 2 7 52 . . Thermal 35 | 2 17 . . 16 Explosive 48 | . 26 22 . . Electromagnetic 48 | . 32 16 . . Robot Hit Streak 13 | 2 13 11 . 2 Robot Miss Streak 4 | 1 4 4 . 1 Penetration Max . | . . . . . Secondary Targets . | . . . . . Shots Hit Robots 107 | 2 46 54 . 5 Core Hits 113 | 2 43 43 . 25 Critical Hits 1 | . . . . 1 Critical Kills . | . . . . . Critical Parts Destroyed 1 | . . . . 1 Melee Attacks . | . . . . . Impact . | . . . . . Slashing . | . . . . . Piercing . | . . . . . Sneak Attacks . | . . . . . Combat Hostiles . | . . . . . Follow-up Attacks . | . . . . . Damage Inflicted 5506 | 34 1276 1606 . 2590 Guns 1139 | 34 490 615 . . Cannons 849 | . . . . 849 Explosions 3518 | . 786 991 . 1741 Melee . | . . . . . Ramming . | . . . . . Kinetic 488 | 9 21 458 . . Thermal 2748 | 25 98 35 . 2590 Explosive 1742 | . 786 956 . . Electromagnetic 528 | . 371 157 . . Impact . | . . . . . Slashing . | . . . . . Piercing . | . . . . . Highest Corruption . | . . . . . Average Corruption . | . . . . . Corruption Purged . | . . . . . Overload Shots . | . . . . . Overflow Damage 419 | . 18 55 . 346 Projectiles 302 | . . . . 302 Explosions 117 | . 18 55 . 44 Melee . | . . . . . Knockbacks . | . . . . . Impact . | . . . . . Kinetic . | . . . . . Secondary . | . . . . . Self-Inflicted Damage 152 | . 18 80 . 54 Shots 10 | . 2 7 . 1 Rammed . | . . . . . Targets Rammed . | . . . . . Kicked . | . . . . . Crushed . | . . . . . Highest Temperature 144 | 40 144 91 . 80 Average Temperature 27 | 23 34 17 . 26 Received Heat Transfer 177 | . 60 90 . 27 Siege Activations . | . . . . . Robots Corrupted 1 | . 1 . . . Combat Hostiles . | . . . . . Parts Fried 1 | . 1 . . . Impact Corruptions . | . . . . . Robots Melted . | . . . . . Combat Hostiles . | . . . . . Parts Melted 3 | . . . . 3 Heat Transferred 3060 | 74 296 50 . 2640 Parts Sabotaged . | . . . . . Parts Stolen . | . . . . . Parts Stripped . | . . . . . Power Chain Reactions 1 | . . 1 . . Missiles Intercepted . | . . . . . Alert | -11 -10 -10 -10 -9 ------- Run | Scr Mat Min Exi Min Peak Influence 292 | 5 194 292 . 195 Initial 3 | . 3 2 . . Average 96 | 1 72 114 . 111 Maximum Alert Level 1 | . . 1 . . Low Security (%) 92 | 100 100 82 . 100 Level 1 7 | . . 17 . . Level 2 . | . . . . . Level 3 . | . . . . . Level 4 . | . . . . . Level 5 . | . . . . . High Security . | . . . . . Max Security . | . . . . . Squads Dispatched . | . . . . . Investigation . | . . . . . Extermination . | . . . . . Reinforcement . | . . . . . Assault . | . . . . . Garrison . | . . . . . Intercept . | . . . . . Construction Impeded . | . . . . . Haulers Reinforced . | . . . . . Stealth | -11 -10 -10 -10 -9 --------- Run | Scr Mat Min Exi Min Distress Signals . | . . . . . Communications Jammed . | . . . . . Distress Signals . | . . . . . Times Spotted 37 | . 13 10 . 14 Peak Tracking Total 17 | . 3 3 . 17 Tactical Retreats . | . . . . . Traps | -11 -10 -10 -10 -9 ------- Run | Scr Mat Min Exi Min Traps Triggered . | . . . . . Indirectly . | . . . . . Trap Hack Attempts . | . . . . . Triggered . | . . . . . Disarmed . | . . . . . Reprogrammed . | . . . . . Reused . | . . . . . Traps Extracted . | . . . . . Installed . | . . . . . Triggered 1 | . . . . 1 Machines | -11 -10 -10 -10 -9 ---------- Run | Scr Mat Min Exi Min Machines Disabled 12 | . 1 4 . 7 Max in Single Turn 4 | . 1 4 . 3 Machines Sabotaged . | . . . . . Garrisons Compromised . | . . . . . Overloaded Fab Kills . | . . . . . Fab Network Shutdowns . | . . . . . Hacking | -11 -10 -10 -10 -9 --------- Run | Scr Mat Min Exi Min Machines Accessed 16 | . 11 . 5 . Terminals 8 | . 8 . . . Fabricators . | . . . . . Repair Stations 1 | . 1 . . . Recycling Units 2 | . 2 . . . Scanalyzers . | . . . . . Garrison Access . | . . . . . Total Hacks 85 | . 35 . 50 . Successful 76 | . 26 . 50 . Failed 9 | . 9 . . . Catastrophic 1 | . 1 . . . Database Lockouts . | . . . . . Manual 24 | . 23 . 1 . Terminals 28 | . 28 . . . Fabricators . | . . . . . Repair Stations 2 | . 2 . . . Recycling Units 5 | . 5 . . . Scanalyzers . | . . . . . Garrison Access . | . . . . . Terminal Hacks 63 | . 13 . 50 . Record 49 | . . . 49 . Robot Analysis 2 | . 2 . . . Branch Access Points 1 | . 1 . . . Emergency Access Points 1 | . 1 . . . Terminal Index 1 | . 1 . . . Alert Level 1 | . 1 . . . Locate Traps 5 | . 5 . . . Registered Components 1 | . 1 . . . Zone Layout 1 | . 1 . . . EX-Prototype ID Bank 1 | . . . 1 . Fabricator Hacks . | . . . . . Repair Station Hacks 1 | . 1 . . . Scan Component 1 | . 1 . . . Recycling Unit Hacks 2 | . 2 . . . Report Inventory 2 | . 2 . . . Scanalyzer . | . . . . . Garrison Access Hacks . | . . . . . Unauthorized Hacks 10 | . 10 . . . Terminals 8 | . 8 . . . Assimilate 1 | . 1 . . . Botnet 6 | . 6 . . . Operators 1 | . 1 . . . Fabricators . | . . . . . Repair Stations . | . . . . . Recycling Units 2 | . 2 . . . Reject 1 | . 1 . . . Mask 1 | . 1 . . . Scanalyzers . | . . . . . Garrison Access . | . . . . . Data Cores Recovered . | . . . . . Used . | . . . . . Hacking Detections 8 | . 8 . . . Full Trace Events . | . . . . . Feedback Events . | . . . . . Feedback Blocked . | . . . . . Robot Schematics Acquired . | . . . . . Robots Built . | . . . . . Matter . | . . . . . Time . | . . . . . Total Robot Build Rating . | . . . . . Part Schematics Acquired . | . . . . . Parts Built . | . . . . . Matter . | . . . . . Time . | . . . . . Total Part Build Rating . | . . . . . Parts Repaired . | . . . . . Time . | . . . . . Parts Recycled . | . . . . . Recycled Matter . | . . . . . Retrieved Matter . | . . . . . Retrieved Components . | . . . . . Parts Scanalyzed . | . . . . . Part Schematics Acquired . | . . . . . Parts Damaged . | . . . . . Bothacking | -11 -10 -10 -10 -9 ------------ Run | Scr Mat Min Exi Min Used RIF Installer . | . . . . . Robots Hacked . | . . . . . Non-combat . | . . . . . Combat . | . . . . . Robot Hacks Applied . | . . . . . Relay Couplers Released . | . . . . . Robots Rewired . | . . . . . Allies Hacked . | . . . . . Hacks Repelled . | . . . . . Allies | -11 -10 -10 -10 -9 -------- Run | Scr Mat Min Exi Min Total Allies 1 | . 1 . . . Largest Group 1 | . 1 1 1 1 Highest-Rated Group 10 | . 10 10 10 10 Highest-Rated Ally 10 | . 10 10 10 10 Total Orders 6 | . 2 2 . 2 STAY 3 | . 1 1 . 1 FOLLOW 3 | . 1 1 . 1 Ally Attacks . | . . . . . Total Damage . | . . . . . Kills . | . . . . . Allies Corrupted . | . . . . . Allies Melted . | . . . . . Intel | -11 -10 -10 -10 -9 ------- Run | Scr Mat Min Exi Min Robot Analysis Total 2 | . 2 . . . Derelict Logs Recovered 5 | . . 3 . 2 Drone Launches . | . . . . . Drone Recoveries . | . . . . . Exploration | -11 -10 -10 -10 -9 ------------- Run | Scr Mat Min Exi Min Turns Passed 3444 | 56 1043 1212 630 503 Spaces Moved 3439 | 49 1068 1162 776 384 Core 4 | 4 . . . . Treads . | . . . . . Legs . | . . . . . Wheels 2158 | 45 90 863 776 384 Hover 1277 | . 978 299 . . Flight . | . . . . . Fastest Speed 50 | 50 56 80 80 80 Average Speed 83 | 85 73 89 80 101 Slowest Speed 116 | 90 116 116 80 110 Overloaded Moves . | . . . . . Propulsion Burnouts . | . . . . . Robots Hopped . | . . . . . Cave-ins Triggered . | . . . . . Exploration Rate (%) 68 | 3 99 99 92 48 Regions Visited 4 Branch Regions 3 Pre-discovered Areas 2 | . . 1 1 . Known Exits Taken 3 | . 1 1 1 . Unknown Exits Taken 1 | 1 . . . . Scrap Searched 4 | . . 2 . 2 Spaces Dug 97 | . 17 27 . 53 Terrain Destroyed 473 | . 127 156 . 190 Melee . | . . . . . Projectile 8 | . . . . 8 AOE 465 | . 127 156 . 182 Terrain Rammed . | . . . . . Walls Destroyed . | . . . . . Machines Disabled . | . . . . . Actions | -11 -10 -10 -10 -9 --------- Run | Scr Mat Min Exi Min Total 3780 | 56 1235 1251 788 450 Wait 110 | . 56 9 . 45 Move 3435 | 48 1067 1161 775 384 Hop . | . . . . . Pick Up 24 | . 17 1 5 1 Fast Attach 15 | 6 6 3 . . Attach 2 | . . 1 . 1 Detach 4 | . 3 . . 1 Swap 38 | . 23 14 . 1 Drop 26 | . 12 5 8 1 Fire 126 | 2 51 57 . 16 Melee . | . . . . . Ram . | . . . . . Kick . | . . . . . Crush . | . . . . . Escape Stasis . | . . . . . Rewire . | . . . . . Trap . | . . . . . Miscellaneous . | . . . . . Route ------- -11/Scrapyard -10/Materials (discovered 4 exits: *Mat x3 / *Min) -10/Mines (discovered 3 exits: *Mat x2 / *Exi) -10/Exiles -9/Mines (discovered 1 exit: *Mat) History --------- Turn | Location | Event 18 | -11/Scrapyard | Discovered new exit (range 16) 57 | -11/Scrapyard | Entered Materials 280 | -10/Materials | Discovered new exit (range 9) 358 | -10/Materials | Discovered new exit (range 18) 575 | -10/Materials | Build established: Mutant 588 | -10/Materials | Discovered new exit (range 14) 598 | -10/Materials | Identified exit to Mines 605 | -10/Materials | Identified exit to Materials 752 | -10/Materials | Discovered exit to Materials (range 15) 1100 | -10/Materials | Entered Mines 1100 | -10/Mines | Accompanied by 1 ally 1177 | -10/Mines | Learned Materials stockpile data 1334 | -10/Mines | Discovered exit to Materials (range 8) 1608 | -10/Mines | Learned Materials stockpile data 1611 | -10/Mines | Deemed a non-threat by the Exiles lab entrance 1611 | -10/Mines | Discovered new exit (range 5) 1614 | -10/Mines | Identified exit to Exiles 1998 | -10/Mines | Learned location of Storage (-9) 2125 | -10/Mines | Discovered exit to Materials (range 4) 2312 | -10/Mines | Entered Exiles 2312 | -10/Exiles | Accompanied by 1 ally 2333 | -10/Exiles | Met 8R-AWN 2345 | -10/Exiles | Met EX-HEX 2381 | -10/Exiles | Met EX-BIN 2445 | -10/Exiles | Aligned with FarCom system 2446 | -10/Exiles | Given EX-Vault access code 2465 | -10/Exiles | Opened EX-Vault 2470 | -10/Exiles | Found YOLO Cannon 2489 | -10/Exiles | Warned to stay clear of 0b10 Research branches 2511 | -10/Exiles | Met EX-DEC 2540 | -10/Exiles | Visited The Gauntlet 2705 | -10/Exiles | Learned location of Zion (-6) 2928 | -10/Exiles | Discovered new exit (range 11) 2938 | -10/Exiles | Identified exit to Mines 2942 | -10/Exiles | Left Exiles lab with YOLO Cannon 2942 | -10/Exiles | Entered Mines 2942 | -9/Mines | Accompanied by 1 ally 2976 | -9/Mines | Met a Derelict bent on vengeance 2998 | -9/Mines | Learned location of 1 exit from Materials 3054 | -9/Mines | Learned Materials trap positions 3231 | -9/Mines | Discovered new exit (range 14) 3246 | -9/Mines | Identified exit to Materials 3413 | -9/Mines | Assembled infested the area 3445 | -9/Mines | Self-destructed Last Messages --------------- 03413_ ALERT: Infestation in the mines, dispatching Demolisher response squad. 03416_ as-27284 destroyed. 03416_ as-74856 destroyed. 03416_ as-59941 destroyed. 03416_ as-12411 destroyed. 03417_ U-05 Engineer destroyed. 03420_ K-01 Serf collects debris. 03420_ as-31918 sneak attacks. 03420_ K-01 Serf destroyed. 03433_ Destroyed Asb. Hover Unit. 03433_ Destroyed Asb. Blade. 03433_ as-80774 destroyed. 03435_ Wheel destroyed. 03437_ Destroyed Asb. Hover Unit. 03437_ Destroyed Asb. Heavy Rifle. 03437_ as-62003 destroyed. 03437_ as-09572 destroyed. 03437_ as-24557 destroyed. 03437_ as-01682 destroyed. 03441_ as-84707 destroyed. Map ----- +----------------------------------------------------+ | " """ """ ""# #???## # ### # | | " """ """ " # #????## # | | ? #### ##?????### # | | ??##########??### ############### ### | | ????????????????# #?# ## "## | | ????????????????# ### ########### ## ####### | | ???????????????## #?????#" ### #????#### | | ??????????????### #####?????#" % #???????## | | ??????????????# # # #???????#!! #???????## | | ??????????????# # # ##??????#][ [[ ##??????## | | ??????????????# # # #??????## % ######???????# | | ??????????????# # # ##??????###//###???????????# | | ??????????????# # # #?????### ######??????# | | ??????????????### ######### #?????## | | ????????????????# ##?# ## #??????# | | ????????????????# #??# ## #?????## | | ????????????????# #??# ## #?????# | | ????????????????# #### ## #?????# | | ????????????????# ## # #?????# | | ????????????????# ## ########### ####?????# | | ????????????????# ## #?????????? #????????## | | ????????????????# ## ######??????#?????????## | | ????????????????# ## # ###### #??????????? | | ????????????????# #### ##; ; #??????????? | | ????????????????# #;;; ;;####??????????? | | ????????????????###### @a ;;#????????????? | | ?????????????????????#####;; ; #???????????? | | ?????????????????????????? ; ; #???????????? | | ???????????????????????????; ; #???????????? | | ???????????????????????????## ; #???????????? | | ?????????????????????????????# ; ; #???????????? | | ??????????????????????????????# ; ;##???????????? | | ???????????????????????????????## ##????????????? | | ????????????????????????????????# #?????????????? | | ????????????????????????????????# #?????????????? | | ????????????????????????????????# #?????????????? | | ????????????????????????????????# #?????????????? | | ????????????????????????????????# #?????????????? | | ????????????????????????????????#!!#?????????????? | | ????????????????????????????????#=%#?????????????? | | ????????????????????????????????# %#?????????????? | | ????????????????????????????????# #?????????????? | | ????????????????????????????????# ??????????????? | | ????????????????????????????????% ??????????????? | | ????????????????????????????????% ??????????????? | | ????????????????????????????????% ??????????????? | | ????????????????????????????????% ??????????????? | | ???????????????????????????????? ??????????????? | | ???????????????????????????????? ??????????????? | | ?????????????????????????????????????????????????? | +----------------------------------------------------+ Best States ------------- Heat Dissipation 25 Energy Generation 10 Energy Capacity 250 Matter Stores 300 Matter Capacity 300 Sight Range 18 Terrain Scan Density 10 Propulsion Shielding 33 Evasion (%) 53 Item Schematics ----------------- None Robot Schematics ------------------ None Fabricated ------------ Nothing Alien Tech Used ----------------- None Achievements -------------- None Challenges ------------ None Game ------ Seed AssaultDamperStorage Manual? 0 Play Time 01:05:49 Cumulative 176.0 hours Start 2020.11.12 @ 22:45:57 End 2020.11.13 @ 07:37:51 Sessions 5 Manual Loads 0 Difficulty Rogue Special Mode Halloween2020/ForbiddenLore Game No. 68 Rogue 68 Adventurer 0 Explorer 0 Win Type - Total 0 Types 0/0/0/0/0/0/0/0/0 Lore% 21 Gallery% 25 Achievement% 23 Wizard Run 0 Options --------- ASCII 0 Keyboard 1 Movement Vi Keybinds 0 Fullscreen 1 Font 12/Terminus Map View 83x54 Tactical HUD 1 Map Filters NONE Filters NONE Steam 1 RUN: 03ab2d66-17ff-47a7-a5ff-5cad15fcd3d9